bitfinex/quotes_SOLUSD_20250527
["timestamp","ask_amount","ask_price","bid_price","bid_amount"]
[1748314667547,21.38404727,172.34,172.29,92.39911721]
[1748314668780,3.32716564,172.38,172.29,92.39911721]
[1748314668945,21.38404727,172.37,172.29,92.39911721]
[1748314669281,21.38404727,172.37,172.29,114.48380661]
[1748314669481,21.38404727,172.36,172.29,114.48380661]
[1748314669641,21.38404727,172.35,172.29,92.39911721]
[1748314670475,2.32018561,172.4,172.29,92.39911721]
[1748314670650,21.38404727,172.36,172.29,92.39911721]
[1748314673750,21.38404727,172.35,172.29,92.39911721]
[1748314673950,21.38404727,172.35,172.33,26.0]
[1748314674156,21.38404727,172.35,172.33,85.0]
[1748314675266,21.38404727,172.35,172.34,34.8]
[1748314677065,23.70490598,172.35,172.34,34.8]
[1748314678071,21.38404727,172.35,172.34,34.8]
[1748314678275,21.38404727,172.35,172.33,85.0]
[1748314678276,21.38404727,172.35,172.33,26.0]
[1748314678451,21.38404727,172.35,172.34,34.8]
[1748314679576,21.38404727,172.37,172.34,34.8]
[1748314679979,60.33690163,172.44,172.34,131.56]
[1748314679980,2.31978194,172.43,172.34,131.56]
[1748314680180,21.38404727,172.39,172.37,26.0]
[1748314680479,21.38404727,172.38,172.37,26.0]
[1748314680652,21.38404727,172.38,172.37,60.8]
[1748314681686,21.38404727,172.38,172.34,96.76]
[1748314681988,5.8001276,172.41,172.35,60.8]
[1748314682358,2.31991648,172.42,172.35,60.8]
[1748314682787,5.64092678,172.42,172.35,60.8]
[1748314683091,21.38404727,172.38,172.35,66.60211729]
[1748314684568,21.38404727,172.38,172.35,60.8]
[1748314687872,21.38404727,172.38,172.35,66.60207011]
[1748314688767,21.38404727,172.37,172.35,26.0]
[1748314688967,21.38404727,172.36,172.34,96.76]
[1748314689273,21.38404727,172.36,172.35,60.8]
[1748314689983,21.38404727,172.36,172.35,119.8]
[1748314697189,2.31991648,172.42,172.37,26.0]
[1748314697397,21.38404727,172.38,172.37,26.0]
[1748314698079,3.31838228,172.42,172.38,26.0]
[1748314698281,24.70242955,172.42,172.39,34.8]
[1748314698476,5.33997816,172.44,172.41,26.0]
[1748314698679,21.38404727,172.42,172.41,26.0]
[1748314700001,21.38404727,172.42,172.39,34.8]
[1748314700182,21.38404727,172.4,172.37,26.0]
[1748314700379,21.38404727,172.38,172.37,26.0]
[1748314700676,21.38404727,172.38,172.37,60.8]
[1748314702677,21.38404727,172.39,172.37,60.8]
[1748314702975,21.38404727,172.38,172.37,60.8]
[1748314704802,21.38404727,172.38,172.37,119.8]
[1748314706505,21.38404727,172.38,172.37,119.55374965]
[1748314707307,21.38404727,172.38,172.37,84.75374965]
[1748314707605,21.38404727,172.38,172.37,119.53374965]
[1748314710686,21.38404727,172.38,172.37,60.53374965]
[1748314711003,21.38404727,172.38,172.37,60.78]
[1748314712103,23.70450207,172.38,172.37,60.78]
[1748314712892,2.32005104,172.41,172.37,60.78]
[1748314713101,21.38404727,172.38,172.37,26.0]
[1748314713486,21.38404727,172.38,172.37,60.78]
[1748314713711,21.38404727,172.38,172.34,37.76]
[1748314713894,21.38404727,172.35,172.34,63.76]
[1748314714089,21.38404727,172.35,172.34,98.54]
[1748314714812,23.70490598,172.35,172.34,63.76]
[1748314714999,23.70490598,172.35,172.34,98.54]
[1748314717115,23.70490598,172.35,172.34,63.76]
[1748314717325,23.70490598,172.35,172.34,98.54]
[1748314718324,23.70490598,172.35,172.34,63.76]
[1748314718525,23.70490598,172.35,172.34,98.54]
[1748314723336,23.70490598,172.35,172.34,63.76]
[1748314723624,23.70490598,172.35,172.34,98.56]
[1748314725014,23.70490598,172.35,172.34,37.76]
[1748314725222,23.70490598,172.35,172.34,72.56]
[1748314727434,23.70490598,172.35,172.31,26.0]
[1748314727435,45.08895325,172.35,172.31,26.0]
[1748314727729,2.32073791,172.36,172.32,34.8]
[1748314727940,21.38404727,172.33,172.32,34.8]
[1748314728122,21.38404727,172.34,172.32,93.8]
[1748314728318,5.65146143,172.37,172.32,93.8]
[1748314728319,21.38404727,172.36,172.33,26.0]
[1748314728833,21.38404727,172.35,172.34,26.0]
[1748314729011,21.38404727,172.36,172.34,26.0]
[1748314729211,21.38404727,172.36,172.35,34.8]
[1748314731435,21.38404727,172.36,172.35,93.8]
[1748314731819,21.38404727,172.37,172.35,93.8]
[1748314732443,21.38404727,172.36,172.35,93.8]
[1748314732623,21.38404727,172.36,172.35,34.8]
[1748314749157,21.38404727,172.36,172.35,93.8]
[1748314749953,13.64491459,172.36,172.35,93.8]
[1748314750642,13.64491459,172.36,172.35,59.0]
[1748314750867,68.22457295,172.36,172.29,37.7]
[1748314751159,13.64491459,172.3,172.29,63.7]
[1748314751331,13.64491459,172.3,172.29,98.5]
[1748314751958,21.33629823,172.3,172.29,63.7]
[1748314752160,21.33629823,172.3,172.29,98.5]
[1748314760971,21.33629823,172.3,172.29,157.5]
[1748314764876,21.33629823,172.3,172.29,98.5]
[1748314765045,21.33629823,172.3,172.29,63.7]
[1748314765249,21.33629823,172.3,172.29,98.5]
[1748314765970,21.33629823,172.3,172.29,63.7]
[1748314766271,21.33629823,172.3,172.29,98.5]
[1748314766671,21.33629823,172.3,172.29,63.7]
[1748314766967,23.65783044,172.3,172.29,98.5]
[1748314767159,23.65783044,172.3,172.29,72.5]
[1748314767461,23.65783044,172.3,172.29,37.7]
[1748314767671,21.33629823,172.3,172.29,72.5]
[1748314770069,21.33629823,172.3,172.29,37.7]
[1748314770458,3.32722534,172.33,172.29,72.5]
[1748314770652,21.33629823,172.32,172.29,78.30408568]
[1748314770974,21.33629823,172.31,172.29,72.5]
[1748314772564,21.33629823,172.3,172.29,72.5]
[1748314772878,21.33629823,172.3,172.29,131.5]
[1748314773173,2.32113756,172.33,172.29,131.5]
[1748314773478,21.33629823,172.3,172.29,131.5]
[1748314773786,21.33629823,172.31,172.29,131.5]
[1748314776363,21.33629823,172.31,172.29,72.5]
[1748314777564,21.33629823,172.31,172.29,78.3041059]
[1748314779459,21.33629823,172.31,172.29,72.5]
[1748314779957,13.65270811,172.31,172.29,72.5]
[1748314788507,13.65270811,172.31,172.29,78.30411825]
[1748314788706,2.32081931,172.36,172.29,104.30411825]
[1748314788707,13.65270811,172.32,172.29,104.30411825]
[1748314793191,13.65270811,172.31,172.29,104.30411825]
[1748314799639,13.65270811,172.3,172.29,63.7]
[1748314799793,13.65270811,172.3,172.29,98.5]
[1748314800196,2.32114462,172.33,172.29,98.5]
[1748314800394,13.65270811,172.3,172.29,63.7]
[1748314800613,13.65270811,172.3,172.29,98.5]
[1748314802225,2.32112806,172.33,172.29,63.7]
[1748314802412,13.65270811,172.3,172.29,98.5]
[1748314808544,4.1283337,172.36,172.29,100.1068]
[1748314808717,4.1283337,172.36,172.29,105.91087874]
[1748314808922,13.65270811,172.35,172.29,105.91087874]
[1748314809240,13.65270811,172.36,172.32,26.0]
[1748314809427,13.65270811,172.36,172.33,34.8]
[1748314812241,13.65270811,172.36,172.33,40.60264899]
[1748314812444,13.65270811,172.37,172.33,40.60264899]
[1748314814225,13.65270811,172.35,172.33,34.8]
[1748314815051,13.65270811,172.34,172.33,34.8]
[1748314818460,13.65270811,172.35,172.33,34.8]
[1748314818961,5.6497666,172.39,172.33,34.8]
[1748314819124,13.65270811,172.36,172.33,34.8]
[1748314819333,13.65270811,172.36,172.33,40.60274469]
[1748314822556,13.65270811,172.35,172.33,34.8]
[1748314822740,13.65270811,172.34,172.29,1.6068]
[1748314822935,13.65270811,172.33,172.3,63.62]
[1748314823128,13.65270811,172.35,172.31,34.8]
[1748314824256,13.65270811,172.34,172.31,40.6032442]
[1748314825758,13.65270811,172.34,172.31,34.8]
[1748314826561,13.65270811,172.34,172.31,40.60344798]
[1748314827546,2.32018561,172.4,172.31,40.60344798]
[1748314827749,13.65270811,172.34,172.31,40.60344798]
[1748314829734,13.65270811,172.36,172.31,40.60344798]
[1748314829938,2.32021047,172.4,172.31,40.60344798]
[1748314830143,13.65270811,172.37,172.31,40.60344798]
[1748314830842,13.65270811,172.36,172.31,40.60344798]
[1748314834463,13.65270811,172.36,172.34,31.802463]
[1748314835442,13.65270811,172.36,172.34,26.0]
[1748314837774,13.65270811,172.36,172.34,31.80241086]
[1748314839561,13.65270811,172.36,172.34,37.58]
[1748314839774,13.65270811,172.36,172.34,63.58]
[1748314841143,4.16009476,172.44,172.37,26.0]
[1748314841353,4.16009476,172.44,172.38,34.8]
[1748314841553,13.65270811,172.42,172.38,34.8]
[1748314842279,13.65270811,172.41,172.38,40.60102443]
[1748314842473,13.65270811,172.42,172.38,40.60102443]
[1748314842848,16.97867455,172.43,172.38,40.60102443]
[1748314843047,13.65270811,172.43,172.38,40.60102443]
[1748314843247,13.65270811,172.42,172.38,40.60102443]
[1748314846749,13.65270811,172.43,172.38,40.60102443]
[1748314847879,2.31940768,172.46,172.38,40.60102443]
[1748314848079,13.65270811,172.43,172.38,40.60102443]
[1748314849283,2.31940768,172.46,172.38,40.60102443]
[1748314849486,13.65270811,172.43,172.38,40.60102443]
[1748314851584,13.65270811,172.42,172.38,40.60102443]
[1748314853075,13.65270811,172.41,172.37,31.80138446]
[1748314853261,13.65270811,172.4,172.38,72.34]
[1748314854073,13.65270811,172.4,172.38,37.56]
[1748314854279,13.65270811,172.4,172.39,34.78]
[1748314854879,2.31967977,172.44,172.39,34.78]
[1748314855057,13.65270811,172.41,172.39,34.78]
[1748314855261,13.65270811,172.46,172.42,26.0]
[1748314855478,4.16009476,172.5,172.42,26.0]
[1748314855785,13.65270811,172.46,172.42,26.0]
[1748314856470,13.65270811,172.47,172.42,30.58680625]
[1748314856861,13.65270811,172.47,172.43,5.79945485]
[1748314857168,13.65270811,172.47,172.44,37.56]
[1748314857369,13.65270811,172.47,172.45,34.78]
[1748314857570,2.31870616,172.51,172.45,34.78]
[1748314857769,13.65270811,172.47,172.45,34.78]
[1748314857970,2.31870616,172.51,172.45,34.78]
[1748314858179,21.29226497,172.47,172.45,34.78]
[1748314858693,2.31857175,172.52,172.45,34.78]
[1748314858895,21.29226497,172.47,172.45,34.78]
[1748314859790,6.0883,172.54,172.48,26.0]
[1748314859997,21.29226497,172.52,172.48,26.0]
[1748314860293,21.29226497,172.51,172.48,26.0]
[1748314860495,21.29226497,172.5,172.48,26.0]
[1748314861200,2.31850591,172.53,172.48,26.0]
[1748314861403,21.29226497,172.5,172.48,26.0]
[1748314862490,21.29226497,172.49,172.47,26.0]
[1748314862794,29.40686431,172.53,172.48,34.78]
[1748314863519,23.61077088,172.53,172.48,34.78]
[1748314863672,2.31850591,172.53,172.48,34.78]
[1748314863995,21.29226497,172.49,172.48,34.78]
[1748314864884,21.29226497,172.5,172.48,34.78]
[1748314865085,21.29226497,172.51,172.48,34.78]
[1748314865579,2.31830597,172.54,172.48,40.57770404]
[1748314865771,21.29226497,172.51,172.48,40.57770404]
[1748314867002,21.29226497,172.52,172.48,40.57770404]
[1748314867897,3.01789396,172.6,172.48,40.57770404]
[1748314867898,6.2367,172.62,172.51,26.0]
[1748314868090,2.3174971,172.6,172.52,37.5]
[1748314868407,21.29226497,172.56,172.53,34.78]
[1748314868989,21.29226497,172.56,172.53,40.57605291]
[1748314869703,2.31767107,172.59,172.53,40.57605291]
[1748314869901,21.29226497,172.56,172.53,40.57605291]
[1748314870495,21.29226497,172.56,172.53,34.78]
[1748314870701,21.29226497,172.54,172.52,37.5]
[1748314870925,8.11076994,172.61,172.53,34.76]
[1748314871100,21.29226497,172.54,172.53,34.76]
[1748314871988,21.29226497,172.55,172.53,34.76]
[1748314872190,21.29226497,172.54,172.53,34.76]
[1748314874217,2.31798704,172.57,172.53,34.76]
[1748314874385,21.29226497,172.55,172.53,34.76]
[1748314875416,2.31798704,172.57,172.53,34.76]
[1748314875716,21.29226497,172.58,172.53,40.55608437]
[1748314876922,21.29226497,172.57,172.53,40.55608437]
[1748314877421,21.29226497,172.57,172.53,34.76]
[1748314877794,2.31763411,172.59,172.53,34.76]
[1748314877996,21.29226497,172.57,172.53,34.76]
[1748314878513,21.29226497,172.57,172.53,40.55605489]
[1748314878721,2.3175193,172.6,172.54,26.0]
[1748314879015,21.29226497,172.56,172.55,26.0]
[1748314879517,21.29226497,172.56,172.55,85.0]
[1748314880719,21.29226497,172.56,172.55,59.0]
[1748314880890,2.3174971,172.6,172.55,59.0]
[1748314881095,21.29226497,172.56,172.55,59.0]
[1748314881525,21.29226497,172.56,172.55,93.76]
[1748314882923,2.3174971,172.6,172.55,93.76]
[1748314883217,21.29226497,172.57,172.55,93.76]
[1748314886829,2.3174971,172.6,172.55,93.76]
[1748314887030,21.29226497,172.57,172.55,93.76]
[1748314888721,2.31765309,172.59,172.55,93.76]
[1748314888900,21.29226497,172.57,172.55,93.76]
[1748314890222,21.29226497,172.56,172.55,93.76]
[1748314890406,21.29226497,172.56,172.55,59.0]
[1748314890601,21.29226497,172.56,172.55,93.76]
[1748314891524,23.61029927,172.56,172.55,59.0]
[1748314891726,23.61029927,172.56,172.55,93.76]
[1748314892729,21.29226497,172.56,172.55,93.76]
[1748314893613,2.317757,172.59,172.55,93.76]
[1748314893926,21.29226497,172.56,172.55,93.76]
[1748314894823,2.317757,172.59,172.55,93.76]
[1748314895016,21.29226497,172.56,172.55,93.76]
[1748314896431,2.31753031,172.6,172.55,93.76]
[1748314896729,21.29226497,172.56,172.55,93.76]
[1748314896914,21.29226497,172.56,172.46,120.82]
[1748314897116,21.29226497,172.48,172.46,120.82]
[1748314897426,21.29226497,172.47,172.46,120.82]
[1748314898137,21.29226497,172.47,172.46,72.18]
[1748314898305,23.61150889,172.47,172.46,37.42]
[1748314898511,23.61150889,172.47,172.46,72.18]
[1748314899830,23.61150889,172.47,172.41,37.42]
[1748314900028,21.29226497,172.43,172.42,34.76]
[1748314902251,21.29226497,172.43,172.41,63.42]
[1748314902549,21.29226497,172.42,172.41,122.42]
[1748314902911,21.29226497,172.42,172.41,157.18]
[1748314904739,21.29226497,172.42,172.41,98.18]
[1748314906745,21.29226497,172.42,172.41,72.18]
[1748314907048,2.31964714,172.45,172.41,72.18]
[1748314907250,21.29226497,172.42,172.41,72.18]
[1748314908030,2.31884057,172.5,172.41,72.18]
[1748314908234,21.29226497,172.43,172.41,131.18]
[1748314908638,21.29226497,172.42,172.41,131.18]
[1748314911950,2.31884057,172.5,172.42,26.0]
[1748314912150,21.29226497,172.48,172.45,26.0]
[1748314912336,21.29226497,172.48,172.46,34.78]
[1748314912649,21.29226497,172.47,172.46,93.78]
[1748314913148,21.29226497,172.48,172.46,93.78]
[1748314913343,21.29226497,172.47,172.46,93.78]
[1748314913556,2.31884057,172.5,172.46,93.78]
[1748314913849,21.29226497,172.47,172.46,93.78]
[1748314914967,6.3151,172.54,172.46,99.57822132]
[1748314915134,21.29226497,172.51,172.47,43.23802561]
[1748314915447,21.29226497,172.5,172.47,43.23802561]
[1748314915747,2.31818733,172.55,172.47,43.23802561]
[1748314915955,21.29226497,172.52,172.47,43.23802561]
[1748314918858,21.29226497,172.51,172.47,43.23802561]
[1748314919963,2.31789998,172.57,172.47,43.23802561]
[1748314920258,21.29226497,172.53,172.47,43.23802561]
[1748314920465,2.31789998,172.57,172.5,26.0]
[1748314920466,21.29226497,172.54,172.5,26.0]
[1748314920666,21.25746521,172.54,172.51,34.78]
[1748314920835,21.29226497,172.53,172.51,34.78]
[1748314921334,21.29226497,172.52,172.5,26.0]
[1748314921534,21.29226497,172.51,172.5,26.0]
[1748314921765,21.29226497,172.52,172.5,60.76]
[1748314922059,2.31789998,172.57,172.5,60.76]
[1748314922239,2.31789998,172.57,172.5,66.5569925]
[1748314922240,21.29226497,172.53,172.5,66.5569925]
[1748314922442,21.29226497,172.55,172.5,66.5569925]
[1748314923741,21.29226497,172.54,172.5,66.5569925]
[1748314923941,21.29226497,172.53,172.5,66.5569925]
[1748314924362,21.29226497,172.54,172.5,66.5569925]
[1748314925548,21.29226497,172.53,172.5,66.5569925]
[1748314926439,2.31796806,172.57,172.5,66.5569925]
[1748314926647,21.29226497,172.53,172.5,125.5569925]
[1748314927164,21.29226497,172.54,172.5,125.5569925]
[1748314930474,21.29226497,172.51,172.5,119.76]
[1748314930875,2.31789998,172.57,172.5,119.76]
[1748314931171,21.29226497,172.51,172.5,119.76]
[1748314931477,21.29226497,172.51,172.5,93.76]
[1748314931661,21.29226497,172.51,172.5,59.0]
[1748314931976,21.29226497,172.51,172.5,93.76]
[1748314932362,23.61097113,172.51,172.48,59.0]
[1748314932550,21.29226497,172.49,172.48,59.0]
[1748314932750,21.29226497,172.49,172.48,34.76]
[1748314932951,21.29226497,172.49,172.47,37.44]
[1748314933278,2.31870616,172.51,172.48,34.76]
[1748314933461,2.31857175,172.52,172.48,34.76]
[1748314934272,23.61070621,172.53,172.48,34.76]
[1748314934577,2.31844124,172.53,172.48,93.76]
[1748314934889,21.29226497,172.49,172.48,93.76]
[1748314940378,2.31816864,172.55,172.48,93.76]
[1748314940568,21.29226497,172.5,172.48,93.76]
[1748314940769,21.29226497,172.49,172.48,93.76]
[1748314942376,2.31867407,172.52,172.48,93.76]
[1748314942578,2.31816864,172.55,172.48,93.76]
[1748314942783,21.29226497,172.49,172.48,93.76]
[1748314945491,2.31816864,172.55,172.48,93.76]
[1748314945683,21.29226497,172.49,172.48,93.76]
[1748314948191,3.31579404,172.55,172.48,99.55770994]
[1748314948367,21.29226497,172.52,172.48,125.55770994]
[1748314948577,21.29226497,172.51,172.48,119.76]
[1748314949083,2.31821546,172.55,172.48,125.55772454]
[1748314949266,21.29226497,172.51,172.48,125.55772454]
[1748314949867,2.3180343,172.56,172.48,125.55772454]
[1748314950167,21.29226497,172.51,172.48,125.55772454]
[1748314951077,2.31833614,172.54,172.48,125.55772454]
[1748314951386,21.29226497,172.55,172.51,26.0]
[1748314951569,21.29226497,172.56,172.53,26.0]
[1748314952879,21.29226497,172.56,172.53,69.15604573]
[1748314956095,21.29226497,172.55,172.53,63.36]
[1748314959394,2.31782365,172.58,172.53,63.36]
[1748314959395,21.29226497,172.54,172.53,63.36]
[1748314961406,21.29226497,172.55,172.53,63.36]
[1748314962289,21.29226497,172.55,172.54,34.76]
[1748314963983,23.6104453,172.55,172.53,59.0]
[1748314964204,21.29226497,172.54,172.53,59.0]
[1748314964407,21.29226497,172.54,172.53,93.76]
[1748314968308,21.29226497,172.54,172.53,34.76]
[1748314972620,23.61056797,172.54,172.53,34.76]
[1748314972808,23.61056797,172.54,172.49,85.0]
[1748314973116,2.318303,172.54,172.5,34.76]
[1748314973498,2.3180343,172.56,172.5,34.76]
[1748314973903,2.31763138,172.59,172.5,34.76]
[1748314974102,2.31763138,172.59,172.5,93.76]
[1748314974311,21.29226497,172.53,172.5,93.76]
[1748314974820,21.29226497,172.53,172.51,5.7967654]
[1748314975319,21.29226497,172.56,172.52,26.0]
[1748314975492,3.32253866,172.58,172.52,85.0]
[1748314975696,21.29226497,172.56,172.52,85.0]
[1748314976521,21.29226497,172.56,172.53,5.79609343]
[1748314977412,2.31740348,172.61,172.56,26.0]
[1748314977719,21.29226497,172.57,172.56,26.0]
[1748314977911,21.29226497,172.57,172.56,60.76]
[1748314981537,2.3175621,172.6,172.56,60.76]
[1748314981722,6.4723,172.62,172.56,60.76]
[1748314981723,21.29226497,172.57,172.56,60.76]
[1748314983022,21.29226497,172.57,172.56,119.76]
[1748314985137,21.29226497,172.58,172.56,60.76]
[1748314985439,21.29226497,172.6,172.56,66.55502897]
[1748314985635,21.29226497,172.6,172.56,125.55502897]
[1748314986935,21.29226497,172.61,172.56,125.55502897]
[1748314987316,21.29226497,172.62,172.56,125.55502897]
[1748314990939,21.29226497,172.63,172.56,125.55502897]
[1748314992117,21.29226497,172.62,172.56,125.55502897]
[1748314996549,2.31698462,172.64,172.56,125.55502897]
[1748314996550,2.31655759,172.67,172.61,26.0]
[1748314996755,21.29226497,172.64,172.62,34.74]
[1748314998450,15.60413869,172.7,172.62,40.53290705]
[1748314998451,12.12979999,172.7,172.62,40.53290705]
[1748314998688,21.29226497,172.68,172.62,40.53290705]
[1748314998847,2.31617693,172.7,172.62,40.53290705]
[1748314999052,2.31588698,172.72,172.65,26.0]
[1748314999342,21.29226497,172.68,172.65,26.0]
[1748314999718,6.47587129,172.73,172.65,26.0]
[1748314999918,21.29226497,172.7,172.66,5.79172941]
[1748315000147,21.29226497,172.7,172.67,34.74]
[1748315000515,21.29226497,172.69,172.67,34.74]
[1748315000935,2.31577653,172.73,172.67,34.74]
[1748315001143,21.29226497,172.7,172.67,34.74]
[1748315003023,21.29226497,172.69,172.67,34.74]
[1748315003341,21.29226497,172.69,172.67,93.74]
[1748315005438,2.31578182,172.73,172.67,93.74]
[1748315005439,21.29226497,172.7,172.67,93.74]
[1748315006042,6.4288,172.78,172.7,26.0]
[1748315006247,8.7439054,172.78,172.7,85.0]
[1748315006455,21.29226497,172.76,172.7,85.0]
[1748315007263,2.31499891,172.79,172.7,86.5111]
[1748315007445,21.29226497,172.76,172.7,86.5111]
[1748315008455,21.29226497,172.76,172.74,26.0]
[1748315008653,21.29226497,172.76,172.75,34.74]
[1748315009534,21.29226497,172.76,172.74,85.0]
[1748315009535,23.60761977,172.76,172.74,59.0]
[1748315009744,21.29226497,172.75,172.74,59.0]
[1748315010061,21.29226497,172.75,172.74,93.74]
[1748315011037,23.60774977,172.75,172.7,85.0]
[1748315011348,21.29226497,172.71,172.7,59.0]
[1748315011566,21.29226497,172.71,172.7,93.72]
[1748315011753,21.29226497,172.71,172.7,59.0]
[1748315012061,42.58452994,172.71,172.62,37.3]
[1748315012352,21.29226497,172.65,172.64,26.0]
[1748315012730,21.29226497,172.65,172.64,34.72]
[1748315012946,21.29226497,172.65,172.62,63.3]
[1748315013126,2.31657372,172.67,172.63,34.72]
[1748315013127,21.29226497,172.64,172.63,34.72]
[1748315014668,21.29226497,172.64,172.62,37.3]
[1748315014849,21.29226497,172.63,172.62,37.3]
[1748315015037,21.29226497,172.63,172.62,72.02]
[1748315016649,11.98021422,172.73,172.63,26.0]
[1748315016852,21.29226497,172.67,172.63,63.46]
[1748315017161,11.98021422,172.73,172.63,63.46]
[1748315017162,21.29226497,172.68,172.63,63.46]
[1748315017662,2.31588698,172.72,172.63,63.46]
[1748315017844,21.29226497,172.67,172.63,63.46]
[1748315018158,2.31588698,172.72,172.63,63.46]
[1748315018358,21.29226497,172.68,172.63,63.46]
[1748315018557,21.29226497,172.69,172.65,5.79206487]
[1748315018754,21.29226497,172.71,172.68,26.0]
[1748315018956,21.29226497,172.71,172.69,34.74]
[1748315019866,21.29226497,172.74,172.69,34.74]
[1748315020050,21.29226497,172.73,172.69,34.74]
[1748315020251,8.92293885,172.77,172.69,34.74]
[1748315020458,5.73159476,172.79,172.69,34.74]
[1748315020459,21.29226497,172.74,172.69,34.74]
[1748315020655,21.29226497,172.7,172.69,34.74]
[1748315020850,21.29226497,172.71,172.69,34.74]
[1748315021183,21.29226497,172.72,172.69,34.74]
[1748315021772,21.29226497,172.75,172.69,40.53065496]
[1748315022073,21.29226497,172.74,172.69,77.99065496]
[1748315022274,21.29226497,172.72,172.69,37.46]
[1748315022571,21.29226497,172.71,172.7,34.74]
[1748315022945,21.29226497,172.72,172.7,34.74]
[1748315023374,2.31561094,172.75,172.7,34.74]
[1748315023750,21.29226497,172.72,172.7,34.74]
[1748315024469,21.29226497,172.71,172.7,34.74]
[1748315025078,21.29226497,172.71,172.7,34.72]
[1748315026942,3.3020625,172.78,172.7,34.72]
[1748315027151,21.29226497,172.76,172.71,26.0]
[1748315027376,21.29226497,172.75,172.71,26.0]
[1748315027561,21.29226497,172.74,172.71,26.0]
[1748315027981,21.29226497,172.73,172.72,26.0]
[1748315028272,5.61715811,172.78,172.72,26.0]
[1748315028481,2.31509561,172.78,172.72,26.0]
[1748315028707,21.29226497,172.75,172.72,26.0]
[1748315029172,2.31468086,172.81,172.73,26.0]
[1748315029375,21.29226497,172.79,172.73,26.0]
[1748315030178,21.29226497,172.78,172.73,26.0]
[1748315030553,8.92814809,172.82,172.73,26.0]
[1748315030753,21.29226497,172.78,172.73,26.0]
[1748315031361,2.31501058,172.79,172.73,26.0]
[1748315031551,21.29226497,172.78,172.73,26.0]
[1748315033473,21.29226497,172.79,172.73,90.78933155]
[1748315033979,2.314413,172.83,172.73,90.78933155]
[1748315033980,21.29226497,172.75,172.74,34.72]
[1748315034363,21.29226497,172.77,172.74,34.72]
[1748315034565,21.29226497,172.76,172.74,34.72]
[1748315034879,21.29226497,172.78,172.74,93.72]
[1748315035948,21.29226497,172.77,172.74,93.72]
[1748315036151,21.29226497,172.76,172.74,93.72]
[1748315036984,21.29226497,172.75,172.73,85.0]
[1748315037159,21.29226497,172.76,172.74,34.72]
[1748315037481,2.31530668,172.77,172.74,34.72]
[1748315037665,21.29226497,172.81,172.76,26.0]
[1748315037861,21.29226497,172.79,172.76,26.0]
[1748315039385,2.31472286,172.81,172.76,26.0]
[1748315039585,21.29226497,172.79,172.76,26.0]
[1748315040296,7.17341159,172.86,172.77,26.0]
[1748315040463,2.31414521,172.85,172.78,26.0]
[1748315040780,21.29226497,172.81,172.79,34.72]
[1748315041078,21.29226497,172.81,172.79,93.72]
[1748315041465,2.31414521,172.85,172.79,93.72]
[1748315041466,21.29226497,172.8,172.79,93.72]
[1748315042276,2.31414521,172.85,172.79,93.72]
[1748315042474,21.29226497,172.8,172.79,93.72]
[1748315042968,2.31401133,172.86,172.79,93.72]
[1748315043476,21.29226497,172.81,172.79,34.72]
[1748315044283,2.31401133,172.86,172.72,7.29680487]
[1748315044284,42.58452994,172.8,172.72,7.29680487]
[1748315044458,21.29226497,172.76,172.73,34.72]
[1748315044659,21.29226497,172.76,172.75,26.0]
[1748315044864,37.09549379,172.87,172.75,26.0]
[1748315044865,5.78613672,172.83,172.75,60.72]
[1748315045063,2.3142791,172.84,172.75,60.72]
[1748315045272,21.29226497,172.78,172.75,60.72]
[1748315045776,21.29226497,172.76,172.75,26.0]
[1748315045983,21.29226497,172.76,172.75,34.72]
[1748315046476,21.29226497,172.76,172.73,26.0]
[1748315046658,2.31494878,172.79,172.74,34.72]
[1748315046859,21.29226497,172.75,172.7,39.12]
[1748315047059,21.29226497,172.72,172.71,60.72]
[1748315047260,21.29226497,172.72,172.7,39.12]